bitfinex-derivatives/quotes_BNBF0:USTF0_20251220
["timestamp","ask_amount","ask_price","bid_price","bid_amount"]
[1766191512183,0.20322473,856.41,855.56,0.87484389]
[1766191512584,0.20322473,856.41,855.6,0.87484389]
[1766191515886,0.20322473,856.41,855.56,0.87484389]
[1766191516385,0.20322473,856.41,855.55,0.87484389]
[1766191521385,0.20322473,856.41,855.54,0.87484389]
[1766191523288,0.20322473,856.41,855.57,0.87484389]
[1766191531695,0.20322473,856.41,855.42,1.16633017]
[1766191531895,0.20322473,856.41,855.57,0.87451358]
[1766191532290,0.20322473,856.41,855.58,0.87451358]
[1766191539904,0.20322473,856.41,855.58,0.87468428]
[1766191540506,0.20322473,856.41,855.59,0.87468428]
[1766191542908,0.20322473,856.41,855.57,0.87468428]
[1766191545402,0.20322473,856.41,855.58,0.87468428]
[1766191548008,0.20322473,856.41,855.58,0.87504362]
[1766191549209,0.20322473,856.41,855.59,0.87504362]
[1766191551511,0.20322473,856.41,855.6,0.87504362]
[1766191551816,0.20322473,856.41,855.59,0.87504362]
[1766191552109,0.20322473,856.41,855.56,0.87504362]
[1766191552314,1.36947354,856.41,855.4,0.87504362]
[1766191552511,1.16624881,856.39,855.36,0.87504362]
[1766191552811,1.36947354,856.41,855.38,0.87504362]
[1766191553009,1.36947354,856.41,855.23,1.16633017]
[1766191553010,0.20322473,856.41,855.4,0.87504362]
[1766191554515,0.20322473,856.41,855.39,0.87504362]
[1766191557017,0.20322473,856.41,855.38,0.87504362]
[1766191558217,0.20322473,856.41,855.39,0.87504362]
[1766191558418,0.20322473,856.41,855.38,0.87504362]
[1766191559218,0.20322473,856.41,855.39,0.87504362]
[1766191559416,0.20322473,856.41,855.38,0.87504362]
[1766191562317,0.20322473,856.41,855.37,0.87504362]
[1766191564121,0.20322473,856.41,855.47,0.87504362]
[1766191565320,0.20322473,856.41,855.48,0.87504362]
[1766191565521,0.20322473,856.41,855.47,0.87504362]
[1766191566218,0.20322473,856.41,855.48,0.87504362]
[1766191566422,0.20322473,856.41,855.47,0.87504362]
[1766191573025,0.20322473,856.41,855.46,0.87504362]
[1766191573424,0.20322473,856.41,855.47,0.87504362]
[1766191582831,0.20322473,856.41,855.4,0.87504362]
[1766191588236,0.20322473,856.41,855.41,0.87504362]
[1766191591438,0.20322473,856.41,855.43,0.87504362]
[1766191591940,1.16624881,856.51,855.43,0.87504362]
[1766191592143,0.20327518,856.18,855.43,0.87504362]
[1766191592344,0.20327518,856.18,855.49,0.87504362]
[1766191592946,0.20327518,856.18,855.57,0.87504362]
[1766191597344,1.16624881,856.64,855.57,0.87504362]
[1766191597749,0.20324847,856.27,855.57,0.87504362]
[1766191598050,0.20324847,856.38,855.57,0.87504362]
[1766191598545,0.20324847,856.38,855.62,0.87504362]
[1766191599348,0.20324847,856.38,855.65,0.87504362]
[1766191601348,0.20324847,856.38,855.64,0.87504362]
[1766191602950,0.20324847,856.38,855.63,0.87504362]
[1766191603347,0.20324847,856.38,855.62,0.87504362]
[1766191607251,0.20324847,856.38,855.61,0.87504362]
[1766191612257,0.20324847,856.38,855.6,0.87504362]
[1766191612454,0.20324847,856.38,855.61,0.87504362]
[1766191613055,0.20324847,856.38,855.62,0.87504362]
[1766191615362,0.20324847,856.38,855.63,0.87504362]
[1766191616257,0.20324847,856.38,855.62,0.87504362]
[1766191616561,0.20324847,856.38,855.63,0.87504362]
[1766191618063,0.20324847,856.38,855.64,0.87504362]
[1766191622265,0.20324847,856.38,855.65,0.87504362]
[1766191626169,0.20324847,856.38,855.49,1.16633017]
[1766191626170,0.20324847,856.38,855.57,0.87504362]
[1766191627072,0.20324847,856.38,855.54,0.87504362]
[1766191632170,0.20324847,856.38,855.55,0.87504362]
[1766191632874,0.20324847,856.38,855.52,0.87504362]
[1766191640180,0.20324847,856.38,855.53,0.87504362]
[1766191641976,0.20324847,856.38,855.45,0.87504362]
[1766191642175,0.20324847,856.38,855.36,0.87504362]
[1766191642380,1.16624881,856.28,855.24,6.85246168]
[1766191642976,1.16624881,856.3,855.25,0.87504362]
[1766191643181,1.16624881,856.32,855.24,6.85246168]
[1766191644282,1.16624881,856.34,855.24,6.85246168]
[1766191645188,1.16624881,856.35,855.24,6.85246168]
[1766191646185,1.16624881,856.36,855.24,6.85246168]
[1766191648185,1.16624881,856.37,855.24,6.85246168]
[1766191649182,1.36949728,856.38,855.24,6.85246168]
[1766191650281,0.20324847,856.38,855.24,6.85246168]
[1766191683006,0.20324847,856.38,855.26,0.87504362]
[1766191684305,0.20324847,856.38,855.27,0.87504362]
[1766191685210,0.20324847,856.38,855.28,0.87504362]
[1766191685505,0.20324847,856.38,855.31,0.87504362]
[1766191685709,0.20324847,856.38,855.32,0.87504362]
[1766191686405,0.20324847,856.38,855.39,0.87504362]
[1766191687005,0.20324847,856.38,855.41,0.87504362]
[1766191687309,0.20324847,856.38,855.44,0.87504362]
[1766191692913,0.20324847,856.38,855.41,0.87504362]
[1766191694809,0.20324847,856.38,855.47,0.87504362]
[1766191700417,0.20324847,856.38,855.46,0.87504362]
[1766191701214,0.20324847,856.38,855.47,0.87504362]
[1766191701517,0.20324847,856.38,855.46,0.87504362]
[1766191703020,0.20324847,856.38,855.49,0.87504362]
[1766191704422,0.20324847,856.38,855.48,0.87504362]
[1766191717330,0.20324847,856.38,855.49,0.87504362]
[1766191718427,0.20324847,856.38,855.5,0.87504362]
[1766191719129,0.20324847,856.38,855.51,0.87504362]
[1766191719326,0.20324847,856.38,855.62,0.87504362]
[1766191720225,0.20324847,856.38,855.63,0.87504362]
[1766191720426,0.20324847,856.38,855.62,0.87504362]
[1766191721235,0.20324847,856.38,855.63,0.87504362]
[1766191721431,0.20324847,856.38,855.62,0.87504362]
[1766191722136,0.20324847,856.38,855.63,0.87504362]
[1766191722337,0.20324847,856.38,855.62,0.87504362]
[1766191723036,0.20324847,856.38,855.59,0.87504362]
[1766191724237,0.20324847,856.38,855.6,0.87504362]
[1766191725741,0.20324847,856.38,855.61,0.87504362]
[1766191725939,1.16624881,856.88,855.66,0.87504362]
[1766191726239,0.20321168,856.48,855.67,0.87504362]
[1766191726535,0.20320456,856.58,855.66,0.87504362]
[1766191729043,0.20320456,856.58,855.72,0.87504362]
[1766191729241,0.20320456,856.58,855.71,0.87504362]
[1766191729844,0.20320456,856.58,855.67,0.87504362]
[1766191730040,0.20320456,856.58,855.5,0.87504362]
[1766191730345,0.20320456,856.58,855.51,0.87504362]
[1766191733042,0.20320456,856.58,855.54,0.87504362]
[1766191734543,0.20320456,856.58,855.55,0.87504362]
[1766191734742,0.20320456,856.58,855.54,0.87504362]
[1766191735242,0.20320456,856.58,855.55,0.87504362]
[1766191737246,0.20320456,856.58,855.56,0.87504362]
[1766191738142,0.20320456,856.58,855.4,1.16633017]
[1766191738445,0.20320456,856.58,855.56,0.87383372]
[1766191739246,0.20320456,856.58,855.57,0.87383372]
[1766191739746,0.20320456,856.58,855.6,0.87383372]
[1766191741448,0.20320456,856.58,855.61,0.87383372]
[1766191743050,0.20320456,856.58,855.6,0.87383372]
[1766191743345,0.20320456,856.58,855.61,0.87383372]
[1766191744350,0.20320456,856.58,855.62,0.87383372]
[1766191745350,0.20320456,856.58,855.63,0.87383372]
[1766191750351,0.20320456,856.58,855.64,0.87383372]
[1766191752850,1.16624881,856.57,855.53,0.87383372]
[1766191753156,1.16624881,856.48,855.44,0.87383372]
[1766191753453,1.16624881,856.44,855.39,0.87383372]
[1766191754454,1.16624881,856.45,855.39,0.87501935]
[1766191755356,1.16624881,856.45,855.38,0.87501935]
[1766191756256,1.16624881,856.46,855.38,0.87501935]
[1766191757358,1.16624881,856.46,855.37,0.87501935]
[1766191758358,1.16624881,856.47,855.36,7.11082784]
[1766191760353,1.16624881,856.47,855.36,6.23580849]
[1766191761354,1.16624881,856.48,855.36,6.23580849]
[1766191761955,1.16624881,856.46,855.36,6.23580849]
[1766191762158,1.16624881,856.46,855.33,0.87501935]
[1766191762954,1.16624881,856.47,855.33,0.87501935]
[1766191763254,1.16624881,856.47,855.32,0.87501935]
[1766191765362,0.20320456,856.58,855.31,0.87501935]
[1766191765363,1.16624881,856.48,855.31,0.87501935]
[1766191767361,0.20320456,856.58,855.31,0.87501935]
[1766191767362,1.16624881,856.49,855.31,0.87501935]
[1766191768364,1.16624881,856.49,855.3,0.87501935]
[1766191770263,1.16624881,856.5,855.3,0.87501935]
[1766191771262,1.16624881,856.5,855.29,0.87501935]
[1766191772963,1.16624881,856.54,855.32,0.87501935]
[1766191775367,1.16624881,856.54,855.31,0.87501935]
[1766191776464,1.16624881,856.55,855.31,0.87501935]
[1766191780869,1.16624881,856.55,855.3,0.87501935]
[1766191781170,1.16624881,856.35,855.11,0.87501935]
[1766191781469,1.74937322,856.51,855.1,0.87501935]
[1766191781470,1.16624881,856.36,855.1,0.87501935]
[1766191782369,1.16624881,856.37,855.09,0.87501935]
[1766191784473,1.16624881,856.38,855.08,0.87501935]
[1766191791378,1.16624881,856.39,855.07,0.87501935]
[1766191791678,1.16624881,856.38,855.07,0.87501935]
[1766191792276,1.16624881,856.39,855.07,0.87501935]
[1766191802389,1.16624881,856.39,855.08,0.87501935]
[1766191803089,1.16624881,856.39,855.07,0.87501935]
[1766191803288,1.16624881,856.38,855.08,0.87501935]
[1766191805488,1.16624881,856.42,855.14,0.87501935]
[1766191806387,1.16624881,856.42,855.15,0.87501935]
[1766191807290,1.16624881,856.41,855.15,0.87501935]
[1766191808296,1.16624881,856.4,855.16,0.87501935]
[1766191809296,1.16624881,856.39,855.17,0.87501935]
[1766191810396,1.16624881,856.38,855.18,0.87501935]
[1766191811298,1.16624881,856.37,855.19,0.87501935]
[1766191812298,1.16624881,856.35,855.2,0.87501935]
[1766191812998,1.16624881,856.25,855.1,0.87501935]
[1766191813297,1.16624881,856.25,855.11,0.87501935]
[1766191818100,1.16624881,856.24,855.11,0.87501935]
[1766191819100,1.16624881,856.24,855.12,0.87501935]
[1766191820604,1.16624881,856.19,855.07,0.87501935]
[1766191823001,1.16624881,856.29,855.18,0.87501935]
[1766191824308,1.16624881,856.29,855.19,0.87501935]
[1766191827212,1.16624881,856.28,855.18,0.87501935]
[1766191827407,1.16624881,856.27,855.18,0.87501935]
[1766191828311,1.16624881,856.27,855.19,0.87501935]
[1766191831109,1.16624881,856.26,855.19,0.87501935]
[1766191831309,1.16624881,856.26,855.2,0.87501935]
[1766191833016,1.16624881,856.25,855.19,0.87501935]
[1766191833216,1.16624881,856.16,855.11,0.87501935]
[1766191833511,0.20320456,856.58,854.99,0.87501935]
[1766191833512,1.16624881,856.04,854.99,0.87501935]
[1766191834220,1.16624881,856.05,854.98,0.87501935]
[1766191834517,1.16624881,856.04,854.98,0.87501935]
[1766191835118,1.16624881,856.05,854.97,0.87501935]
[1766191835318,1.16624881,856.05,854.98,0.87501935]
[1766191836220,1.16624881,856.05,854.97,0.87501935]
[1766191836421,1.16624881,856.05,854.98,0.87501935]
[1766191837117,1.16624881,856.06,854.97,0.87501935]
[1766191837317,1.16624881,856.05,854.97,0.87501935]
[1766191838124,1.16624881,856.06,854.97,0.87501935]
[1766191838324,1.16624881,856.05,854.97,0.87501935]
[1766191839125,1.16624881,856.06,854.97,0.87501935]
[1766191839326,1.16624881,856.05,854.97,0.87501935]
[1766191840126,1.16624881,856.06,854.97,0.87501935]
[1766191840321,1.16624881,856.05,854.97,0.87501935]
[1766191841124,1.16624881,856.06,854.97,0.87501935]
[1766191842129,1.16624881,856.06,854.96,0.87501935]
[1766191843028,1.16624881,856.06,854.95,6.01906304]
[1766191843029,1.16624881,856.07,854.97,0.87501935]
[1766191843229,1.16624881,856.08,854.96,0.87501935]
[1766191845129,1.16624881,856.09,854.95,6.89408239]
[1766191847336,1.16624881,856.1,854.95,6.89408239]
[1766191848132,1.16624881,856.1,854.95,6.01906304]
[1766191851144,1.16624881,856.11,854.95,6.01906304]
[1766191853049,1.16624881,856.01,854.95,6.01906304]
[1766191853450,1.16624881,856.02,854.95,6.01906304]
[1766191856754,1.16624881,856.0,854.95,6.01906304]
[1766191857351,1.16624881,855.91,854.95,6.01906304]
[1766191859053,1.16624881,855.92,854.95,6.01906304]
[1766191860355,1.16624881,855.92,854.69,0.87501935]
[1766191861557,1.16624881,855.84,854.61,0.87501935]
[1766191861758,1.16624881,855.84,854.6,0.87501935]
[1766191861958,1.16624881,855.68,854.45,0.87501935]
[1766191862352,1.16624881,855.7,854.42,0.87501935]
[1766191863056,1.16624881,855.8,854.52,0.87501935]
[1766191863254,1.16624881,855.8,854.5,0.87501935]
[1766191863457,1.16624881,855.82,854.5,0.87501935]
[1766191864257,1.16624881,855.83,854.49,0.87501935]
[1766191864753,1.16624881,855.83,854.48,0.87501935]
[1766191865153,1.16624881,855.81,854.46,0.87501935]
[1766191865453,1.16624881,855.74,854.34,0.87501935]
[1766191866357,1.16624881,855.72,854.29,0.87501935]
[1766191867253,1.16624881,855.74,854.27,0.87501935]
[1766191868361,1.16624881,855.75,854.25,0.87501935]
[1766191869261,1.16624881,855.77,854.23,0.87501935]
[1766191870558,1.16624881,855.78,854.22,0.87501935]
[1766191871262,1.16624881,855.79,854.21,0.87501935]
[1766191872263,1.16624881,855.8,854.2,0.87501935]
[1766191873364,1.16624881,855.81,854.2,0.87501935]
[1766191874263,1.16624881,855.82,854.19,0.87501935]
[1766191875362,1.16624881,855.83,854.18,0.87501935]
[1766191875663,1.16624881,855.83,854.19,0.87501935]
[1766191876361,1.74937322,855.98,854.09,0.20352127]
[1766191876362,1.16624881,855.84,854.18,0.87501935]
[1766191877363,1.16624881,855.85,854.18,0.87501935]
[1766191878261,1.16624881,855.85,854.17,0.87501935]
[1766191879165,1.16624881,855.85,854.18,0.87501935]
[1766191879463,1.16624881,855.85,854.17,0.87501935]
[1766191881166,1.16624881,855.86,854.17,0.87501935]
[1766191882169,1.16624881,855.85,854.17,0.87501935]
[1766191882368,1.16624881,855.86,854.17,0.87501935]
[1766191883064,1.16624881,855.85,854.16,0.87501935]
[1766191885872,1.16624881,855.89,854.2,0.87501935]
[1766191886069,1.16624881,855.96,854.28,0.87501935]
[1766191887066,1.16624881,855.96,854.29,0.87501935]
[1766191887270,1.16624881,855.95,854.29,0.87501935]
[1766191888272,1.16624881,855.94,854.29,0.87501935]
[1766191889167,1.16624881,855.94,854.3,0.87501935]
[1766191889372,1.16624881,855.93,854.3,0.87501935]
[1766191890271,1.16624881,855.92,854.3,0.87501935]
[1766191891270,1.16624881,855.91,854.31,0.87501935]
[1766191892169,1.16624881,855.9,854.32,0.87501935]
[1766191892973,1.16624881,855.87,854.28,0.87501935]
[1766191893174,1.16624881,855.86,854.29,0.87501935]
[1766191894373,1.16624881,855.81,854.25,0.87501935]
[1766191895370,1.16624881,855.8,854.25,0.87501935]
[1766191897075,1.16624881,855.8,854.26,0.87501935]
[1766191899280,1.16624881,855.79,854.26,0.87501935]
[1766191900176,1.16624881,855.79,854.27,0.87501935]
[1766191901181,1.16624881,855.78,854.27,0.87501935]
[1766191902077,1.16624881,855.78,854.28,0.87501935]
[1766191903084,1.16624881,855.73,854.24,0.87501935]
[1766191904180,1.16624881,855.72,854.25,0.87501935]
[1766191905085,1.16624881,855.71,854.25,0.87501935]
[1766191905384,1.16624881,855.71,854.26,0.87501935]
[1766191906285,1.16624881,855.7,854.26,0.87501935]
[1766191907186,1.16624881,855.7,854.27,0.87501935]
[1766191908085,1.16624881,855.69,854.28,0.87501935]
[1766191909184,1.16624881,855.68,854.29,0.87501935]
[1766191910190,1.16624881,855.67,854.3,0.87501935]
[1766191911090,1.16624881,855.67,854.09,0.20352127]
[1766191911091,1.16624881,855.66,854.31,0.87501935]
[1766191911390,1.16624881,855.65,854.32,0.87501935]
[1766191912186,1.16624881,855.64,854.33,0.87501935]
[1766191912992,1.16624881,855.72,854.41,0.87501935]
[1766191913192,1.16624881,855.71,854.43,0.87501935]
[1766191914089,1.16624881,855.7,854.44,0.87501935]
[1766191914293,1.16624881,855.69,854.44,0.87501935]
[1766191915196,1.16624881,855.68,854.46,0.87501935]
[1766191915395,1.16624881,855.67,854.46,0.87501935]
[1766191916397,2.91562203,856.44,854.49,0.87501935]
[1766191916398,1.16624881,855.65,854.49,0.87501935]
[1766191917201,1.16624881,855.63,854.51,0.87501935]
[1766191917701,1.16624881,855.65,854.53,0.87501935]
[1766191918102,1.16624881,855.63,854.55,0.87501935]
[1766191919099,1.16624881,855.61,854.57,0.87501935]
[1766191921404,1.16624881,855.59,854.59,0.87501935]
[1766191921798,1.16624881,855.57,854.57,0.87501935]
[1766191922303,1.16624881,855.56,854.58,0.87501935]
[1766191923001,1.16624881,855.53,854.55,0.87501935]
[1766191926806,0.20349985,855.29,854.55,0.87501935]
[1766191928211,0.20349985,855.29,854.56,0.87501935]
[1766191928806,0.20349985,855.29,854.5,0.87501935]
[1766191929105,0.20349985,855.29,854.35,1.16633017]
[1766191929106,0.20349985,855.29,854.45,0.87501935]
[1766191932612,0.20349985,855.29,854.45,0.87683924]
[1766191933011,0.20349985,855.29,854.48,0.87683924]
[1766191933411,0.20349985,855.29,854.47,0.87683924]
[1766191937413,0.20349985,855.29,854.42,0.87683924]
[1766191939313,0.20349985,855.29,854.41,0.87683924]
[1766191940613,0.20349985,855.29,854.41,0.87653133]
[1766191940914,0.20349985,855.29,854.35,0.87653133]
[1766191941214,1.16624881,855.26,854.24,0.87653133]
[1766191941417,1.16624881,855.28,854.22,0.87653133]
[1766191942218,1.16624881,855.28,854.23,0.87653133]
[1766191942418,0.20349985,855.29,854.38,0.87653133]
[1766191943116,0.20349985,855.29,854.31,0.87653133]
[1766191947418,0.20349985,855.29,854.3,0.87653133]
[1766191952524,0.20349985,855.29,854.33,0.87653133]
[1766191953225,0.20349985,855.29,854.4,0.87653133]
[1766191956638,0.20349985,855.29,854.24,1.16633017]
[1766191956837,0.20349985,855.29,854.4,0.87570606]
[1766191963042,0.20349985,855.29,854.39,0.87570606]
[1766191963746,0.20349985,855.29,854.33,0.87570606]
[1766191965453,0.20349985,855.29,854.32,0.87570606]
[1766191969555,0.20349985,855.29,854.31,0.87570606]
[1766191969953,0.20349985,855.29,854.22,0.87570606]
[1766191971254,0.20349985,855.29,854.21,0.87570606]
[1766191972356,0.20349985,855.29,854.23,0.87570606]
[1766191972560,0.20349985,855.29,854.28,0.87570606]
[1766191973159,0.20349985,855.29,854.29,0.87570606]
[1766191973357,0.20349985,855.29,854.34,0.87570606]
[1766191978358,0.20349985,855.29,854.35,0.87570606]
[1766191979058,0.20349985,855.29,854.42,0.87570606]
[1766191982566,0.20349985,855.29,854.43,0.87570606]
[1766191983064,0.20349985,855.29,854.42,0.87570606]
[1766191984266,0.20349985,855.29,854.43,0.87570606]
[1766191987565,0.20349985,855.29,854.44,0.87570606]
[1766191990773,0.20349985,855.29,854.29,1.16633017]
[1766191990774,0.20349985,855.29,854.38,0.87570606]
[1766191992072,1.16624881,855.27,854.25,0.87570606]
[1766191992272,1.16624881,855.22,854.19,0.87570606]
[1766191993072,1.16624881,855.19,854.15,0.87570606]
[1766191993272,1.16624881,855.2,854.15,0.87570606]
[1766191994378,1.16624881,855.2,854.14,0.87570606]
[1766191995173,1.16624881,855.26,854.2,0.87570606]
[1766191996274,1.16624881,855.27,854.2,0.87570606]
[1766191997278,1.16624881,855.27,854.19,0.87570606]
[1766192001282,1.16624881,855.27,854.18,0.87570606]
[1766192001577,1.16624881,855.27,854.19,0.87570606]
[1766192003082,0.20349985,855.29,854.23,0.87570606]
[1766192004380,0.20349985,855.29,854.22,0.87570606]
[1766192010294,0.20349985,855.29,854.21,0.87570606]
[1766192010496,0.20349985,855.29,854.21,0.87578879]
[1766192013095,0.20349985,855.29,854.2,0.87578879]
[1766192017895,0.20349985,855.29,854.21,0.87578879]
[1766192018096,1.16624881,855.22,854.11,0.87578879]
[1766192018293,1.16624881,855.17,854.06,0.87578879]
[1766192018491,1.16624881,855.12,854.0,0.87578879]
[1766192019389,1.16624881,855.13,853.99,0.87578879]
[1766192020190,1.16624881,855.14,853.99,0.87578879]
[1766192020395,1.16624881,855.14,853.98,0.87578879]
[1766192021293,1.16624881,855.15,853.98,0.87578879]
[1766192022298,1.16624881,855.15,853.97,0.87578879]
[1766192023196,1.16624881,855.16,853.97,0.87578879]
[1766192024295,1.16624881,855.17,853.97,0.87578879]
[1766192025297,1.16624881,855.17,853.96,0.87578879]
[1766192026397,1.16624881,855.18,853.96,0.87578879]
[1766192026897,1.16624881,855.15,853.93,0.87578879]
[1766192027202,1.16624881,855.16,853.92,0.87578879]
[1766192029002,1.16624881,855.16,853.82,0.2035933]
[1766192029201,1.16624881,855.16,853.92,0.87465821]
[1766192029400,1.16624881,855.17,853.91,0.87465821]
[1766192031307,1.16624881,855.18,853.9,0.87465821]
[1766192033008,1.16624881,855.11,853.9,0.87465821]
[1766192033217,1.16624881,855.11,853.82,1.07825151]
[1766192033416,1.16624881,854.99,853.74,4.95293718]
[1766192033614,1.74937322,855.14,853.74,4.95293718]
[1766192033615,1.16624881,854.98,853.74,4.95293718]
[1766192034308,1.74937322,855.14,853.74,4.95293718]
[1766192034309,1.16624881,854.99,853.74,4.95293718]
[1766192035215,1.16624881,854.99,853.68,0.87465821]
[1766192035416,1.16624881,854.86,853.53,0.87465821]
[1766192036216,1.16624881,854.88,853.52,1.07832301]
[1766192037317,1.16624881,854.89,853.52,0.2036648]
[1766192038317,1.16624881,854.9,853.52,0.2036648]
[1766192038817,1.16624881,854.93,853.52,1.07832301]
[1766192039015,1.16624881,854.96,853.55,0.87465821]
[1766192039214,1.16624881,854.96,853.56,0.87465821]
[1766192039419,1.16624881,854.97,853.55,0.87465821]
[1766192039915,1.16624881,855.13,853.72,0.87465821]
[1766192043217,1.16624881,855.13,853.52,0.2036648]
[1766192043218,1.16624881,855.2,853.8,0.87465821]
[1766192044521,1.16624881,855.19,853.8,0.87465821]
[1766192045221,1.16624881,855.21,853.83,0.87465821]
[1766192047319,1.16624881,855.2,853.84,0.87465821]
[1766192048523,1.16624881,855.19,853.84,0.87465821]
[1766192049227,1.16624881,855.19,853.85,0.87465821]
[1766192050324,1.16624881,855.18,853.86,0.87465821]
[1766192051526,1.16624881,855.18,853.71,1.16633017]
[1766192051527,1.16624881,855.17,853.87,0.87465821]
[1766192053030,1.16624881,855.13,853.83,0.87465821]
[1766192058432,1.16624881,855.12,853.84,0.87465821]
[1766192060434,1.16624881,855.15,853.87,0.87465821]
[1766192061434,1.16624881,855.19,853.92,0.87465821]
[1766192061930,1.16624881,855.19,853.93,0.87465821]
[1766192063133,1.16624881,855.21,853.95,0.87465821]
[1766192063332,1.16624881,855.21,853.96,0.87465821]
[1766192063534,1.16624881,855.27,854.01,0.87465821]
[1766192064238,1.16624881,855.26,854.02,0.87465821]
[1766192065735,0.20349985,855.29,854.08,0.87465821]
[1766192067442,0.20349985,855.29,854.09,0.87465821]
[1766192069343,0.20349985,855.29,854.1,0.87465821]
[1766192071842,0.20349985,855.29,853.95,1.16633017]
[1766192072042,0.20349985,855.29,854.1,0.87473268]
[1766192073040,1.16624881,855.26,854.05,0.87473268]
[1766192074341,1.16624881,855.25,854.05,0.87473268]
[1766192076239,1.16624881,855.25,854.06,0.87473268]
[1766192076441,1.16624881,855.25,854.05,0.87473268]
[1766192077238,1.16624881,855.25,854.06,0.87473268]
[1766192078344,1.16624881,855.25,854.05,0.87473268]
[1766192078840,0.20349985,855.29,853.52,0.2036648]
[1766192078841,0.20349985,855.29,854.1,0.87473268]
[1766192079045,0.20349985,855.29,854.14,0.87473268]
[1766192079440,0.20349985,855.29,853.83,1.74949525]
[1766192079441,0.20349985,855.29,854.13,0.87473268]
[1766192079839,0.20349985,855.29,853.98,1.16633017]
[1766192080040,0.20349985,855.29,854.14,0.87470274]
[1766192080245,0.20349985,855.29,854.21,0.87470274]
[1766192080446,0.20349985,855.29,854.2,0.87470274]
[1766192081444,0.20349985,855.29,854.19,0.87470274]
[1766192082349,0.20349985,855.29,854.18,0.87470274]
[1766192083052,0.20349985,855.29,854.13,0.87470274]
[1766192083251,0.20349985,855.29,854.12,0.87470274]
[1766192084350,0.20349985,855.29,854.11,0.87470274]
[1766192085451,0.20349985,855.29,854.1,0.87470274]
[1766192086053,1.16624881,855.16,853.84,0.87470274]
[1766192086254,1.16624881,855.15,853.84,0.87470274]
[1766192086453,1.16624881,855.11,853.8,0.87470274]
[1766192093059,1.16624881,855.24,853.93,0.87470274]
[1766192094357,0.20349985,855.29,853.93,0.87470274]
[1766192094358,1.16624881,855.23,853.93,0.87470274]
[1766192096359,1.16624881,855.22,853.94,0.87470274]
[1766192097256,1.16624881,855.22,853.96,0.87470274]
[1766192097461,1.16624881,855.21,853.96,0.87470274]
[1766192097861,1.16624881,855.09,853.84,0.87470274]
[1766192098462,1.16624881,855.09,853.85,0.87470274]
[1766192099362,1.16624881,855.08,853.85,0.87470274]
[1766192100665,1.16624881,855.1,853.87,0.87470274]
[1766192100865,1.16624881,855.13,853.9,0.87470274]
[1766192103162,1.16624881,855.12,853.9,0.87470274]
[1766192103666,1.16624881,855.13,853.91,0.87470274]
[1766192103968,1.16624881,855.17,853.95,0.87470274]
[1766192105167,1.16624881,855.16,853.95,0.87470274]
[1766192113077,1.16624881,855.15,853.94,0.87470274]
[1766192115173,1.16624881,855.14,853.94,0.87470274]
[1766192118278,1.16624881,855.14,853.95,0.87470274]
[1766192122581,1.16624881,855.15,853.95,0.87470274]
[1766192123183,1.16624881,855.16,853.96,0.87470274]
[1766192124384,1.16624881,855.28,854.09,0.87470274]
[1766192126980,0.20358139,854.99,854.09,0.87470274]
[1766192133292,0.20358139,854.99,854.04,0.87470274]
[1766192138399,0.20358139,854.99,854.1,0.87470274]
[1766192140400,0.20358139,854.99,854.11,0.87470274]
[1766192141395,0.20358139,854.99,854.12,0.87470274]
[1766192143300,0.20358139,854.99,854.19,0.87470274]
[1766192144403,0.20358139,854.99,854.2,0.87470274]
[1766192145404,0.20358139,854.99,854.21,0.87470274]
[1766192147105,0.20358139,854.99,854.2,0.87470274]
[1766192150803,1.16624881,855.31,854.2,0.87470274]
[1766192151008,0.2035552,855.09,854.2,0.87470274]
[1766192151409,0.2035552,855.09,854.19,0.87470274]
[1766192155515,0.2035552,855.09,854.2,0.87470274]
[1766192155815,0.2035552,855.09,854.26,0.87470274]
[1766192156018,0.2035552,855.09,854.32,0.87470274]
[1766192156310,1.16624881,855.46,854.31,0.87470274]
[1766192156618,0.20352782,855.2,854.31,0.87470274]
[1766192161215,0.20352782,855.2,854.3,0.87470274]
[1766192161419,0.20352782,855.2,854.2,0.87470274]
[1766192161620,0.20352782,855.2,854.17,0.87470274]
[1766192162420,0.20352782,855.2,854.18,0.87470274]
[1766192163122,0.20352782,855.2,853.78,5.12727341]
[1766192163123,0.20352782,855.2,854.15,0.87470274]
[1766192167226,0.20352782,855.2,854.16,0.87470274]
[1766192172231,0.20352782,855.2,854.17,0.87470274]
[1766192173232,0.20352782,855.2,854.13,0.87470274]
[1766192176431,0.20352782,855.2,854.14,0.87470274]
[1766192178237,0.20352782,855.2,854.15,0.87470274]
[1766192180339,0.20352782,855.2,854.16,0.87470274]
[1766192182236,1.36977663,855.2,854.17,0.87470274]
[1766192183243,1.36977663,855.2,853.78,5.12727341]
[1766192183244,0.20352782,855.2,854.24,0.87470274]
[1766192184244,0.20352782,855.2,854.25,0.87470274]
[1766192186745,0.20352782,855.2,854.27,0.87470274]
[1766192187152,0.20352782,855.2,854.42,0.87470274]
[1766192187353,0.20352782,855.2,854.43,0.87470274]
[1766192187947,0.20352782,855.2,854.44,0.87470274]
[1766192188248,0.20352782,855.2,854.43,0.87470274]
[1766192189449,0.20352782,855.2,854.42,0.87470274]
[1766192190756,1.16624881,855.46,854.42,0.87470274]
[1766192191245,1.16624881,855.47,854.41,0.87470274]
[1766192193150,2.91562203,856.24,853.78,5.12727341]